bitfinex-derivatives/quotes_BTCF0:USTF0_20230106
["timestamp","ask_amount","ask_price","bid_price","bid_amount"]
[1673044279836,0.12854209,16960.0,16959.0,2.08172084]
[1673044284668,0.12846411,16960.0,16959.0,2.08172084]
[1673044285717,0.09855111,16960.0,16959.0,2.08172084]
[1673044286559,0.09855111,16960.0,16959.0,1.81714435]
[1673044287408,0.09855111,16960.0,16959.0,2.08172084]
[1673044288670,0.09855111,16960.0,16959.0,1.81714435]
[1673044291300,0.09855111,16960.0,16959.0,2.08172084]
[1673044295809,0.09855111,16960.0,16959.0,1.48032084]
[1673044296135,0.09855111,16960.0,16959.0,2.08172084]
[1673044303700,0.0905537,16960.0,16959.0,2.08172084]
[1673044304636,0.0905537,16960.0,16959.0,1.48032084]
[1673044304851,0.0905537,16960.0,16959.0,2.08172084]
[1673044312534,0.0905537,16960.0,16959.0,2.08162486]
[1673044313488,0.0905537,16960.0,16959.0,2.43324673]
[1673044314015,0.0905537,16960.0,16959.0,2.08162486]
[1673044317274,0.0905537,16960.0,16959.0,1.48022486]
[1673044317478,0.0905537,16960.0,16959.0,2.08162486]
[1673044319059,0.0905537,16960.0,16959.0,1.48022486]
[1673044319264,0.0905537,16960.0,16959.0,2.08162486]
[1673044323374,0.0905537,16960.0,16959.0,1.48022486]
[1673044323586,0.0905537,16960.0,16959.0,2.08162486]
[1673044324950,0.0905537,16960.0,16959.0,2.43324673]
[1673044325158,0.0905537,16960.0,16959.0,1.81714435]
[1673044325365,0.0905537,16960.0,16959.0,2.16876622]
[1673044326216,0.0915537,16960.0,16959.0,2.16776622]
[1673044326527,0.0905537,16960.0,16959.0,2.02976622]
[1673044326732,0.0915537,16960.0,16959.0,2.60729355]
[1673044326946,0.0915537,16960.0,16959.0,1.81614435]
[1673044327264,0.0915537,16960.0,16959.0,2.25567168]
[1673044327475,0.0915537,16960.0,16959.0,2.60799577]
[1673044328422,0.0915537,16960.0,16959.0,2.16846844]
[1673044329256,0.0915537,16960.0,16959.0,1.81614435]
[1673044329473,0.0915537,16960.0,16959.0,2.25567168]
[1673044329982,0.0915537,16960.0,16959.0,2.6079242]
[1673044330403,0.0915537,16960.0,16959.0,2.25567168]
[1673044330836,0.0915537,16960.0,16959.0,2.16839531]
[1673044341969,0.0915537,16960.0,16959.0,2.60792264]
[1673044342180,0.0915537,16960.0,16959.0,2.16839531]
[1673044342924,0.0915537,16960.0,16959.0,1.56699531]
[1673044343245,0.0915537,16960.0,16959.0,2.16839531]
[1673044347019,0.0915537,16960.0,16959.0,1.86769531]
[1673044347238,0.0915537,16960.0,16959.0,2.16839531]
[1673044347974,0.0915537,16960.0,16959.0,2.60792264]
[1673044348287,0.0915537,16960.0,16959.0,2.16839531]
[1673044348917,0.0915537,16960.0,16959.0,2.60792264]
[1673044349128,0.0915537,16960.0,16959.0,2.16839531]
[1673044351855,0.0915537,16960.0,16959.0,2.60792264]
[1673044352908,0.0915537,16960.0,16959.0,2.30722264]
[1673044353123,0.0915537,16960.0,16959.0,2.60792264]
[1673044353756,0.0915537,16960.0,16959.0,1.56699531]
[1673044353958,0.0915537,16960.0,16959.0,2.16839531]
[1673044355649,0.0915537,16960.0,16959.0,2.60792264]
[1673044356385,0.0915537,16960.0,16959.0,2.60794754]
[1673044357545,0.0915537,16960.0,16959.0,2.25567168]
[1673044358488,0.0915537,16960.0,16959.0,2.60802194]
[1673044358901,0.0915537,16960.0,16959.0,2.25567168]
[1673044359119,0.0915537,16960.0,16959.0,2.60804243]
[1673044359435,0.0915537,16960.0,16959.0,2.85567168]
[1673044359849,0.0915537,16960.0,16959.0,2.76853981]
[1673044360806,0.0915537,16960.0,16959.0,2.85567168]
[1673044362167,0.0915537,16960.0,16959.0,3.20816229]
[1673044362686,0.0915537,16960.0,16959.0,2.85567168]
[1673044368900,0.0915537,16960.0,16959.0,2.25427168]
[1673044369112,0.0915537,16960.0,16959.0,2.85567168]
[1673044376042,0.0915537,16960.0,16959.0,3.38310448]
[1673044376364,0.0915537,16960.0,16959.0,2.85567168]
[1673044384875,0.0915537,16960.0,16959.0,3.20802002]
[1673044386234,0.0915537,16960.0,16959.0,2.85567168]
[1673044386665,0.0915537,16960.0,16959.0,3.20796492]
[1673044387505,0.0915537,16960.0,16959.0,2.85567168]
[1673044387715,0.0915537,16960.0,16959.0,3.20793502]
[1673044388983,0.0915537,16960.0,16959.0,2.76840769]
[1673044390342,0.0915537,16960.0,16959.0,2.46770769]
[1673044390664,0.0915537,16960.0,16959.0,2.76840769]
[1673044398549,0.0915537,16960.0,16959.0,3.20793502]
[1673044400123,0.0915537,16960.0,16959.0,2.76829194]
[1673044400862,0.0915537,16960.0,16959.0,2.60641927]
[1673044401074,0.0915537,16960.0,16959.0,3.20781927]
[1673044401808,0.0915537,16960.0,16959.0,2.76829194]
[1673044402969,0.0915537,16960.0,16959.0,2.16689194]
[1673044403169,0.0915537,16960.0,16959.0,2.76829194]
[1673044405268,0.0915537,16960.0,16959.0,3.20781927]
[1673044406226,0.0915537,16960.0,16959.0,2.76829194]
[1673044407071,0.0915537,16960.0,16959.0,3.20781927]
[1673044407274,0.0915537,16960.0,16959.0,2.76829194]
[1673044411375,0.0915537,16960.0,16959.0,3.20781927]
[1673044412319,0.0915537,16960.0,16959.0,2.85555593]
[1673044413996,0.0915537,16960.0,16959.0,2.25415593]
[1673044414208,0.0915537,16960.0,16959.0,2.85555593]
[1673044417260,0.0915537,16960.0,16959.0,2.25555593]
[1673044417570,0.0915537,16960.0,16959.0,2.60789145]
[1673044417781,0.0915537,16960.0,16959.0,2.16836412]
[1673044417985,0.0915537,16960.0,16959.0,2.43264882]
[1673044419143,0.0915537,16960.0,16959.0,2.0803133]
[1673044422929,0.0915537,16960.0,16959.0,2.43264882]
[1673044423874,0.0915537,16960.0,16959.0,2.16836412]
[1673044424194,0.0915537,16960.0,16959.0,2.4325192]
[1673044424816,0.0915537,16960.0,16959.0,2.16836412]
[1673044425035,0.0915537,16960.0,16959.0,2.08016813]
[1673044427134,0.0915537,16960.0,16959.0,2.43250365]
[1673044427342,0.0915537,16960.0,16959.0,2.08016813]
[1673044435863,0.0915537,16960.0,16959.0,1.8160286]
[1673044436386,0.0915537,16960.0,16959.0,2.08016813]
[1673044436804,0.0915537,16960.0,16959.0,1.8160286]
[1673044442595,0.0915537,16960.0,16959.0,1.2146286]
[1673044442799,0.0915537,16960.0,16959.0,1.8160286]
[1673044443539,0.0915537,16960.0,16959.0,2.08016813]
[1673044444167,0.0915537,16960.0,16959.0,1.8160286]
[1673044445318,0.0915537,16960.0,16959.0,1.81591413]
[1673044446902,0.0915537,16960.0,16959.0,2.08005366]
[1673044450467,0.0915537,16960.0,16959.0,2.68005366]
[1673044455930,0.0915537,16960.0,16959.0,2.07865366]
[1673044456138,0.0915537,16960.0,16959.0,2.68005366]
[1673044457302,0.0915537,16960.0,16959.0,3.03238918]
[1673044457616,0.0915537,16960.0,16959.0,2.68005366]
[1673044458142,0.0915537,16960.0,16959.0,2.76824965]
[1673044462870,0.0915537,16960.0,16959.0,3.0324933]
[1673044465916,0.0915537,16960.0,16959.0,2.68015778]
[1673044466863,0.0915537,16960.0,16959.0,3.0324933]
[1673044467275,0.0915537,16960.0,16959.0,2.68015778]
[1673044469173,0.0915537,16960.0,16959.0,3.0324933]
[1673044470434,0.0915537,16960.0,16959.0,2.68015778]
[1673044470752,0.0915537,16960.0,16959.0,3.0324933]
[1673044471488,0.0915537,16960.0,16959.0,2.68015778]
[1673044473379,0.0915537,16960.0,16959.0,3.0324933]
[1673044476528,0.0915537,16960.0,16959.0,2.76824965]
[1673044478946,0.0915537,16960.0,16959.0,2.46754965]
[1673044479158,0.0915537,16960.0,16959.0,2.76824965]
[1673044482094,0.0915537,16960.0,16959.0,2.16684965]
[1673044482310,0.0915537,16960.0,16959.0,2.76824965]
[1673044482834,0.0915537,16960.0,16959.0,3.0324591]
[1673044483261,0.0915537,16960.0,16959.0,2.76824965]
[1673044488506,0.0915537,16960.0,16959.0,3.03251142]
[1673044489777,0.0915537,16960.0,16959.0,2.76824965]
[1673044489987,0.0915537,16960.0,16959.0,3.03251999]
[1673044490727,0.0915537,16960.0,16959.0,2.76824965]
[1673044490927,0.0915537,16960.0,16959.0,3.03252605]
[1673044491562,0.0915537,16960.0,16959.0,2.76824965]
[1673044493875,0.0915537,16960.0,16959.0,3.03251435]
[1673044494301,0.0915537,16960.0,16959.0,2.76824965]
[1673044494512,0.0915537,16960.0,16959.0,2.68017604]
[1673044495975,0.0915537,16960.0,16959.0,2.76824965]
[1673044501239,0.0915537,16960.0,16959.0,3.20777698]
[1673044501554,0.0915537,16960.0,16959.0,2.76824965]
[1673044501970,0.0915537,16960.0,16959.0,3.20777698]
[1673044502395,0.0915537,16960.0,16959.0,2.76824965]
[1673044506282,0.0905537,16960.0,16959.0,2.76824965]
[1673044510590,0.0905537,16960.0,16959.0,3.03242253]
[1673044511011,0.08385337,16960.0,16959.0,2.76824965]
[1673044515955,0.08385337,16960.0,16959.0,2.16684965]
[1673044516165,0.08385337,16960.0,16959.0,2.76824965]
[1673044519119,0.08385337,16960.0,16959.0,2.16684965]
[1673044519312,0.08385337,16960.0,16959.0,2.76824965]
[1673044520484,0.08385337,16960.0,16959.0,2.85544146]
[1673044521740,0.08385337,16960.0,16959.0,3.20766498]
[1673044522167,0.08385337,16960.0,16959.0,2.60626498]
[1673044522379,0.08385337,16960.0,16959.0,3.20766498]
[1673044525115,0.08385337,16960.0,16959.0,2.85544146]
[1673044525743,0.08385337,16960.0,16959.0,3.20762729]
[1673044525952,0.08385337,16960.0,16959.0,2.76809996]
[1673044526480,0.08385337,16960.0,16959.0,2.85544146]
[1673044528054,0.08385337,16960.0,16959.0,3.2075873]
[1673044529209,0.08385337,16960.0,16959.0,2.85544146]
[1673044529421,0.08385337,16960.0,16959.0,3.2075902]
[1673044530044,0.08385337,16960.0,16959.0,2.85544146]
[1673044537307,0.08385337,16960.0,16959.0,3.20756498]
[1673044539510,0.08385337,16960.0,16959.0,2.76803765]
[1673044542351,0.08385337,16960.0,16959.0,3.03223227]
[1673044542872,0.08385337,16960.0,16959.0,2.76803765]
[1673044546655,0.08385337,16960.0,16959.0,2.16663765]
[1673044546868,0.08385337,16960.0,16959.0,2.76803765]
[1673044550227,0.08385337,16960.0,16959.0,2.16803765]
[1673044551479,0.08385337,16960.0,16959.0,2.43228023]
[1673044554960,0.08385337,16960.0,16959.0,2.08015671]
[1673044555271,0.08385337,16960.0,16959.0,2.43228023]
[1673044555589,0.08385337,16960.0,16959.0,1.83088023]
[1673044555901,0.08385337,16960.0,16959.0,2.43228023]
[1673044556107,0.08385337,16960.0,16959.0,2.08015671]
[1673044556954,0.08385337,16960.0,16959.0,2.43228023]
[1673044557376,0.08385337,16960.0,16959.0,2.08015671]
[1673044557588,0.08385337,16960.0,16959.0,2.43228023]
[1673044558637,0.08385337,16960.0,16959.0,2.08015671]
[1673044560736,0.08385337,16960.0,16959.0,2.43228023]
[1673044561050,0.08385337,16960.0,16959.0,2.68015671]
[1673044561265,0.08385337,16960.0,16959.0,3.03228023]
[1673044561571,0.08385337,16960.0,16959.0,2.76803765]
[1673044565051,0.08385337,16960.0,16959.0,2.16663765]
[1673044565359,0.08385337,16960.0,16959.0,2.76803765]
[1673044567883,0.08385337,16960.0,16959.0,2.16663765]
[1673044568100,0.08385337,16960.0,16959.0,2.76803765]
[1673044569033,0.08385337,16960.0,16959.0,2.16663765]
[1673044569244,0.08385337,16960.0,16959.0,2.76803765]
[1673044576715,0.08385337,16960.0,16959.0,2.76785304]
[1673044577871,0.08385337,16960.0,16959.0,2.46715304]
[1673044578087,0.08385337,16960.0,16959.0,2.76785304]
[1673044581663,0.08385337,16960.0,16959.0,3.03216959]
[1673044583553,0.08385337,16960.0,16959.0,2.76785304]
[1673044583759,0.08385337,16960.0,16959.0,3.03215032]
[1673044584180,0.08385337,16960.0,16959.0,2.43215032]
[1673044585758,0.08385337,16960.0,16959.0,2.0800268]
[1673044598891,0.08385337,16960.0,16959.0,1.4786268]
[1673044599097,0.08385337,16960.0,16959.0,2.0800268]
[1673044603723,0.08385337,16960.0,16959.0,1.4786268]
[1673044603937,0.08385337,16960.0,16959.0,2.0800268]
[1673044605088,0.08385337,16960.0,16959.0,2.6800268]
[1673044606040,0.08385337,16960.0,16959.0,3.03215032]
[1673044607411,0.08385337,16960.0,16959.0,2.6800268]
[1673044609294,0.08385337,16960.0,16959.0,2.0786268]
[1673044609503,0.08385337,16960.0,16959.0,2.6800268]
[1673044614028,0.08385337,16960.0,16959.0,2.3793268]
[1673044614349,0.08385337,16960.0,16959.0,2.6800268]
[1673044615074,0.08385337,16960.0,16959.0,2.43075032]
[1673044615285,0.08385337,16960.0,16959.0,3.03215032]
[1673044615495,0.08385337,16960.0,16959.0,2.43075032]
[1673044615706,0.08385337,16960.0,16959.0,3.03215032]
[1673044616659,0.08385337,16960.0,16959.0,2.6800268]
[1673044621178,0.08385337,16960.0,16959.0,3.03215032]
[1673044621387,0.08385337,16960.0,16959.0,2.76785304]
[1673044621804,0.08385337,16960.0,16959.0,3.0321076]
[1673044623491,0.08385337,16960.0,16959.0,2.67998408]
[1673044625494,0.08385337,16960.0,16959.0,2.07858408]
[1673044625705,0.08385337,16960.0,16959.0,2.41572952]
[1673044630859,0.08385337,16960.0,16959.0,2.41552369]
[1673044631388,0.08385337,16960.0,16959.0,1.81552369]
[1673044631692,0.08385337,16960.0,16959.0,2.03574536]
[1673044633469,0.08385337,16960.0,16959.0,1.44733665]
[1673044634633,0.08385337,16960.0,16959.0,1.02207711]
[1673044634843,0.08385337,16960.0,16959.0,1.62347711]
[1673044635371,0.08385337,16960.0,16959.0,1.44733665]
[1673044636214,0.08385337,16960.0,16959.0,1.62343151]
[1673044636427,0.08385337,16960.0,16959.0,1.44733665]
[1673044636952,0.08385337,16960.0,16959.0,1.62342739]
[1673044637150,0.08385337,16960.0,16959.0,1.40320572]
[1673044640099,0.08385337,16960.0,16959.0,0.80180572]
[1673044640624,0.08385337,16960.0,16959.0,1.40320572]
[1673044641050,0.08385337,16960.0,16959.0,1.53522145]
[1673044641679,0.08385337,16960.0,16959.0,1.04750647]
[1673044642308,0.08385337,16960.0,16959.0,0.87141573]
[1673044642732,0.08385337,16960.0,16959.0,1.53521845]
[1673044642933,0.08385337,16960.0,16959.0,1.04750647]
[1673044643139,0.08385337,16960.0,16959.0,0.87141573]
[1673044643361,0.05417706,16960.0,16959.0,0.87141573]
[1673044643563,0.05417706,16960.0,16959.0,1.40319881]
[1673044643774,0.05417706,16960.0,16959.0,1.53521572]
[1673044643992,0.05417706,16960.0,16959.0,1.40319881]
[1673044645146,0.05417706,16960.0,16959.0,0.93380869]
[1673044645357,0.05417706,16960.0,16959.0,1.40319881]
[1673044645564,0.05417706,16960.0,16959.0,0.80179881]
[1673044645884,0.05417706,16960.0,16959.0,1.40319881]
[1673044646299,0.05417706,16960.0,16959.0,0.87141114]
[1673044646512,0.05417706,16960.0,16959.0,1.04750188]
[1673044646937,0.05398729,16960.0,16959.0,0.87141114]
[1673044647359,0.05398729,16960.0,16959.0,0.57071114]
[1673044647672,0.05398729,16960.0,16959.0,1.14750188]
[1673044647995,0.05398729,16960.0,16959.0,1.63521003]
[1673044648415,0.05398729,16960.0,16959.0,1.14750188]
[1673044649766,0.05398729,16960.0,16959.0,1.63520761]
[1673044650620,0.05398729,16960.0,16959.0,1.50319647]
[1673044651034,0.05398729,16960.0,16959.0,1.63519182]
[1673044651245,0.05398729,16960.0,16959.0,1.50319647]
[1673044651671,0.05398729,16960.0,16959.0,0.87140094]
[1673044653348,0.05398729,16960.0,16959.0,1.04749168]
[1673044653777,0.05398729,16960.0,16959.0,1.40319662]
[1673044657035,0.05398729,16960.0,16959.0,1.44732755]
[1673044657237,0.05398729,16960.0,16959.0,1.62335347]
[1673044657769,0.05398729,16960.0,16959.0,1.62335292]
[1673044657971,0.05398729,16960.0,16959.0,1.44732755]
[1673044658302,0.05398729,16960.0,16959.0,1.40315416]
[1673044659771,0.05398729,16960.0,16959.0,1.53522485]
[1673044659982,0.05398729,16960.0,16959.0,0.87146238]
[1673044661242,0.05398729,16960.0,16959.0,0.95951861]
[1673044661867,0.05398729,16960.0,16959.0,0.87146238]
[1673044662286,0.05398729,16960.0,16959.0,0.95951728]
[1673044664181,0.05398729,16960.0,16959.0,0.35811728]
[1673044664390,0.05398729,16960.0,16959.0,0.95951728]
[1673044665029,0.05398729,16960.0,16959.0,0.8274549]
[1673044668804,0.05398729,16960.0,16959.0,0.95951728]
[1673044669648,0.05398729,16960.0,16959.0,0.35811728]
[1673044669854,0.05398729,16960.0,16959.0,0.95951728]
[1673044671321,0.05398729,16960.0,16959.0,0.8274549]
[1673044673952,0.05398729,16960.0,16959.0,0.95951728]
[1673044674799,0.05398729,16960.0,16959.0,0.8274549]
[1673044675535,0.05398729,16960.0,16959.0,0.95951728]
[1673044675955,0.05398729,16960.0,16959.0,0.8274549]
[1673044678378,0.05398729,16960.0,16959.0,0.7394]
[1673044678689,0.05398729,16960.0,16959.0,0.8274549]
[1673044679107,0.05398729,16960.0,16959.0,0.7394]
[1673044679424,0.05398729,16960.0,16959.0,0.8274549]
[1673044681624,0.05398729,16960.0,16959.0,0.5267549]
[1673044681834,0.05398729,16960.0,16959.0,0.8274549]
[1673044682682,0.05398729,16960.0,16959.0,0.7394]
[1673044689621,0.05398729,16960.0,16959.0,0.8274549]
[1673044689831,0.05398729,16960.0,16959.0,0.7394]
[1673044693924,0.05398729,16960.0,16959.0,0.83930708]
[1673044694134,0.05398729,16960.0,16959.0,0.23790708]
[1673044694345,0.05398729,16960.0,16959.0,0.83930708]
[1673044700236,0.05398729,16960.0,16959.0,0.43860708]
[1673044700451,0.05398729,16960.0,16959.0,0.73930708]
[1673044705388,0.05398729,16960.0,16959.0,0.13790708]
[1673044705389,0.35398729,16960.0,16959.0,0.13790708]
[1673044706536,0.35398729,16960.0,16957.0,0.3007]
[1673044706748,0.05498729,16960.0,16959.0,0.139]
[1673044710855,0.35498729,16960.0,16959.0,0.139]
[1673044713172,0.94458729,16960.0,16959.0,0.139]
[1673044714123,1.24528729,16960.0,16959.0,0.139]
[1673044720010,0.94528729,16960.0,16959.0,0.139]
[1673044723379,0.1,16959.0,16957.0,0.3007]
[1673044725581,0.102,16959.0,16957.0,0.4397]
[1673044732207,0.102,16959.0,16957.0,0.5873]
[1673044735053,0.102,16959.0,16958.0,0.1476]
[1673044736829,0.102,16959.0,16958.0,0.2866]
[1673044742307,0.102,16959.0,16958.0,0.2864539]
[1673044745031,0.9923,16959.0,16958.0,0.139]
[1673044762485,1.1399,16959.0,16958.0,0.139]
[1673044766180,1.5868,16959.0,16953.0,1.2294]
[1673044766484,0.1,16955.0,16953.0,0.9287]
[1673044766895,0.1,16955.0,16953.0,0.1476]
[1673044767534,0.1,16955.0,16953.0,0.2476]
[1673044767944,0.1,16955.0,16953.0,0.2716]
[1673044769422,0.114,16955.0,16953.0,0.2716]
[1673044774046,0.114,16955.0,16953.0,0.5723]
[1673044775841,0.114,16955.0,16953.0,0.2716]
[1673044776056,0.4147,16955.0,16953.0,0.2716]
[1673044777313,0.4147,16955.0,16953.0,0.1716]
[1673044779736,1.0043,16955.0,16953.0,0.1716]
[1673044779950,1.0043,16955.0,16953.0,0.024]
[1673044779951,0.1469,16954.0,16953.0,0.024]
[1673044780158,0.7365,16954.0,16953.0,0.024]
[1673044780362,0.8365,16954.0,16953.0,0.024]
[1673044781420,0.8365,16954.0,16950.0,0.1472]
[1673044781733,0.7036,16954.0,16953.0,0.021]
[1673044781934,0.1,16953.0,16950.0,0.2472]
[1673044782148,0.836,16953.0,16950.0,0.2472]
[1673044782463,1.1379,16952.0,16950.0,0.121]
[1673044782678,0.1,16951.0,16950.0,0.121]
[1673044783098,0.1,16951.0,16950.0,0.1]
[1673044783302,0.1,16951.0,16950.0,0.121]
[1673044784352,0.113,16951.0,16950.0,0.122]
[1673044787308,0.114,16951.0,16950.0,0.12]
[1673044790135,0.014,16951.0,16950.0,0.2676]
[1673044790881,0.1,16953.0,16951.0,0.1]
[1673044791083,0.1,16953.0,16952.0,0.1473]
[1673044791292,0.1,16954.0,16952.0,0.1473]
[1673044791503,0.1,16954.0,16953.0,0.2476]
[1673044792244,0.1,16954.0,16953.0,0.5483]
[1673044792446,0.115,16954.0,16953.0,0.5483]
[1673044792866,0.115,16954.0,16953.0,0.2476]
[1673044793290,0.115,16954.0,16953.0,0.247]
[1673044793612,0.108,16954.0,16953.0,0.279]
[1673044801075,0.008,16954.0,16953.0,0.279]
[1673044804437,0.3087,16954.0,16953.0,0.279]
[1673044805069,0.3087,16954.0,16953.0,0.2796]
[1673044813379,0.008,16954.0,16953.0,0.2796]
[1673044814002,0.3087,16954.0,16953.0,0.2796]
[1673044817054,0.008,16954.0,16953.0,0.2796]
[1673044818319,0.3087,16954.0,16953.0,0.2796]
[1673044829039,0.4087,16954.0,16953.0,0.1796]
[1673044829249,0.4087,16954.0,16953.0,0.1792]
[1673044836616,0.4087,16954.0,16953.0,0.032]
[1673044836617,1.1459,16954.0,16953.0,0.032]
[1673044844393,1.1459,16954.0,16953.0,0.03185664]
[1673044845752,0.8452,16954.0,16953.0,0.03185664]
[1673044845968,1.4466,16954.0,16953.0,0.03185664]
[1673044851004,1.4459,16954.0,16953.0,0.03185664]
[1673044851222,1.5935,16954.0,16953.0,0.03185664]
[1673044852164,1.5855,16954.0,16949.0,0.1]
[1673044852376,1.0093,16954.0,16953.0,0.005]
[1673044852587,1.6052,16954.0,16953.0,0.005]
[1673044853845,1.5862,16954.0,16949.0,0.1]
[1673044854055,1.383,16954.0,16953.0,0.004]
[1673044854268,1.6765,16954.0,16953.0,0.004]
[1673044860251,1.5301,16954.0,16953.0,0.004]
[1673044860460,1.5306,16954.0,16953.0,0.004]
[1673044860671,0.6403,16954.0,16953.0,0.004]
[1673044861089,0.192,16954.0,16953.0,0.2516]
[1673044862039,0.192,16954.0,16953.0,0.5523]
[1673044862780,0.192,16954.0,16953.0,0.2516]
[1673044874026,0.192,16954.0,16953.0,0.1516]
[1673044878116,0.4927,16954.0,16953.0,0.1516]
[1673044883479,0.4927,16954.0,16953.0,0.1512]
[1673044885048,0.4927,16954.0,16953.0,0.1503]
[1673044889267,0.192,16954.0,16953.0,0.1503]
[1673044890946,0.192,16954.0,16953.0,0.15019085]
[1673044902294,0.4927,16954.0,16953.0,0.15019085]
[1673044905030,0.4927,16954.0,16953.0,0.15149085]
[1673044909868,0.192,16954.0,16953.0,0.15149085]
[1673044910072,0.4927,16954.0,16953.0,0.15149085]
[1673044910493,0.192,16954.0,16953.0,0.15149085]
[1673044910809,0.4927,16954.0,16953.0,0.15149085]
[1673044915118,0.4927,16954.0,16953.0,0.15069085]
[1673044921955,0.4927,16954.0,16953.0,0.14969085]
[1673044925110,0.4927,16954.0,16953.0,0.00289085]
[1673044931834,0.4927,16954.0,16953.0,0.15049085]
[1673044934457,8.87004,16954.0,16953.0,0.15049085]
[1673044935099,8.87004,16954.0,16953.0,0.00289085]
[1673044954015,8.56934,16954.0,16953.0,0.00289085]
[1673044954213,8.87004,16954.0,16953.0,0.00289085]
[1673044954958,8.56934,16954.0,16953.0,0.00289085]
[1673044955274,8.87004,16954.0,16953.0,0.00289085]
[1673044961055,8.56934,16954.0,16953.0,0.00289085]
[1673044961264,8.87004,16954.0,16953.0,0.00289085]
[1673044964941,8.56934,16954.0,16953.0,0.00289085]
[1673044965147,0.4927,16954.0,16953.0,0.00289085]
[1673044968408,0.4927,16954.0,16953.0,0.00271882]
[1673044969774,0.192,16954.0,16953.0,0.00271882]
[1673044970193,0.4927,16954.0,16953.0,0.00271882]
[1673044974092,0.192,16954.0,16953.0,0.00271882]
[1673044974297,0.4927,16954.0,16953.0,0.00271882]
[1673044977668,0.192,16954.0,16953.0,0.00271882]
[1673044977873,0.4927,16954.0,16953.0,0.00271882]
[1673044994689,3.4927,16954.0,16953.0,0.00271882]
[1673044994897,4.383,16954.0,16953.0,0.00271882]
[1673044995113,4.5306,16954.0,16953.0,0.00271882]
[1673045000268,3.6403,16954.0,16953.0,0.00271882]
[1673045003945,3.639,16954.0,16953.0,0.00271882]
[1673045005103,3.4927,16954.0,16953.0,0.00271882]
[1673045010347,3.092,16954.0,16953.0,0.74531882]
[1673045010567,3.092,16954.0,16953.0,0.84531882]
[1673045012145,3.018,16954.0,16953.0,0.8476]
[1673045013304,3.009,16954.0,16953.0,0.8666]
[1673045016251,3.3097,16954.0,16949.0,0.3007]
[1673045016459,0.3007,16952.0,16951.0,0.8856]
[1673045016666,0.3007,16952.0,16951.0,0.1463]
[1673045017824,0.015,16952.0,16951.0,0.1493]
[1673045018034,0.3157,16952.0,16951.0,0.1493]
[1673045018980,0.015,16952.0,16951.0,0.1493]
[1673045020554,0.015,16952.0,16951.0,0.45]
[1673045024351,0.015,16952.0,16951.0,1.0396]
[1673045032446,0.015,16952.0,16951.0,0.7389]
[1673045032755,0.015,16952.0,16951.0,1.0396]
[1673045035278,0.015,16952.0,16951.0,1.1867]
[1673045036013,3.015,16952.0,16951.0,1.1867]
[1673045045359,2.985929,16952.0,16951.0,2.88319323]
[1673045045566,2.96269559,16952.0,16951.0,2.70714495]
[1673045047467,2.96669559,16952.0,16951.0,2.84214495]
[1673045047775,2.96269559,16952.0,16951.0,2.70414495]
[1673045047986,2.96669559,16952.0,16951.0,2.84214495]
[1673045048927,2.96269559,16952.0,16951.0,2.84314495]
[1673045049139,2.96269559,16952.0,16951.0,3.10739951]
[1673045049561,2.96269559,16952.0,16951.0,3.10639951]
[1673045049977,2.96269559,16952.0,16951.0,2.84214495]
[1673045050615,2.96269559,16952.0,16951.0,2.84314495]
[1673045051033,2.96269559,16952.0,16951.0,2.70414495]
[1673045051250,2.96269559,16952.0,16951.0,2.84214495]
[1673045051660,2.96269559,16952.0,16951.0,3.10639951]
[1673045055455,2.96269559,16952.0,16951.0,3.06213046]
[1673045057346,2.96269559,16952.0,16951.0,3.36283046]
[1673045058073,2.96269559,16952.0,16951.0,3.36284907]
[1673045058808,4.01269559,16952.0,16951.0,3.36284907]
[1673045059239,1.05,16952.0,16951.0,3.14284495]
[1673045059443,1.05,16952.0,16951.0,3.36287273]
[1673045060398,1.05,16952.0,16951.0,3.36291614]
[1673045060605,1.05,16952.0,16951.0,3.14284495]
[1673045063135,1.05,16952.0,16951.0,3.40709951]
[1673045063665,1.05,16956.0,16951.0,3.40709951]
[1673045063973,0.3018,16958.0,16955.0,0.447]
[1673045064188,1.05,16956.0,16955.0,0.3007]
[1673045064395,1.05,16956.0,16955.0,0.6475]
[1673045065133,1.05,16956.0,16955.0,0.6479]
[1673045065966,1.05,16956.0,16955.0,0.7869]
[1673045072059,1.05,16956.0,16955.0,0.4862]
[1673045072270,1.05,16956.0,16955.0,0.7869]
[1673045075117,1.05,16956.0,16955.0,0.7873]
[1673045076375,1.05,16956.0,16955.0,0.91941987]
[1673045085412,1.05,16956.0,16955.0,1.09547158]
[1673045086247,1.05,16956.0,16955.0,1.58331914]
[1673045088982,1.05,16956.0,16955.0,1.09547158]
[1673045089195,1.05,16956.0,16955.0,1.45120497]
[1673045090027,1.05,16956.0,16955.0,1.58354482]
[1673045090451,1.05,16956.0,16955.0,1.45120497]
[1673045092557,1.05,16956.0,16955.0,1.58354702]
[1673045093090,1.05,16956.0,16955.0,1.45120497]
[1673045093503,1.05,16956.0,16955.0,1.58353611]
[1673045094448,1.05,16956.0,16955.0,1.45120497]
[1673045094656,1.05,16956.0,16955.0,1.58354397]
[1673045094872,1.05,16956.0,16955.0,1.28284397]
[1673045096137,1.05,16956.0,16955.0,0.79499071]
[1673045096344,1.05,16956.0,16955.0,1.28285182]
[1673045096764,1.05,16956.0,16955.0,1.15051282]
[1673045101707,1.05,16956.0,16955.0,1.45121282]
[1673045102124,1.05,16956.0,16955.0,1.15051282]
[1673045102327,1.05,16956.0,16955.0,1.45121282]
[1673045104534,1.0985,16956.0,16955.0,1.45121282]
[1673045109900,1.0985,16956.0,16955.0,1.15051282]
[1673045110118,1.0985,16956.0,16955.0,1.45121282]
[1673045125157,1.0985,16956.0,16955.0,1.15051282]
[1673045125467,1.0985,16956.0,16955.0,1.45121282]
[1673045127146,1.0985,16956.0,16955.0,1.67127746]
[1673045127463,1.0985,16956.0,16955.0,1.49522575]
[1673045134293,1.0985,16956.0,16955.0,1.67173673]
[1673045134926,1.0985,16956.0,16955.0,1.49522575]
[1673045136285,1.0985,16956.0,16955.0,1.67171743]
[1673045136502,1.0985,16956.0,16955.0,1.49522575]
[1673045137452,1.0985,16956.0,16955.0,1.79592575]
[1673045138503,1.0985,16956.0,16955.0,1.97241279]
[1673045138910,1.0985,16956.0,16955.0,1.79592575]
[1673045141233,1.0985,16956.0,16955.0,1.19452575]
[1673045141548,1.0985,16956.0,16955.0,1.79592575]
[1673045147545,1.0985,16956.0,16955.0,1.49522575]
[1673045147761,1.0985,16956.0,16955.0,1.79592575]